fUST/lending_fUST_20250316
["ID","MTS","AMOUNT","RATE_DAILY","PERIOD"]
[356206509,1742069459391,-500.0,9.589e-05,2]
[356206510,1742069459400,-500.0,9.589e-05,2]
[356206511,1742069459410,-500.0,9.589e-05,2]
[356206512,1742069459419,-500.0,9.589e-05,2]
[356206513,1742069459429,-855.74,9.589e-05,2]
[356206514,1742069459438,-500.0,9.589e-05,2]
[356206515,1742069459448,-500.0,9.589e-05,2]
[356206516,1742069459458,-500.0,9.589e-05,2]
[356206517,1742069459467,-500.0,9.863e-05,2]
[356206518,1742069459477,-326.76,9.863e-05,2]
[356206519,1742069459487,-500.0,9.863e-05,2]
[356206520,1742069459496,-534.07,9.863e-05,2]
[356206521,1742069459510,-500.0,9.863e-05,2]
[356206522,1742069459519,-500.0,9.863e-05,2]
[356206523,1742069459528,-500.0,9.863e-05,2]
[356206524,1742069459538,-504.2,9.863e-05,2]
[356206525,1742069459548,-500.0,9.863e-05,2]
[356206526,1742069459558,-500.0,9.863e-05,2]
[356206527,1742069459567,-500.0,9.863e-05,2]
[356206528,1742069459577,-500.0,9.863e-05,2]
[356206529,1742069459589,-648.58,9.863e-05,2]
[356206530,1742069459598,-500.0,9.863e-05,2]
[356206531,1742069459607,-500.0,9.863e-05,2]
[356206532,1742069459617,-610.62950095,9.863e-05,2]
[356206533,1742069459626,-500.0,9.863e-05,2]
[356206534,1742069459635,-920.03,9.863e-05,2]
[356206535,1742069459644,-612.47,9.863e-05,2]
[356206536,1742069459654,-500.0,9.863e-05,2]
[356206537,1742069459663,-500.0,9.863e-05,2]
[356206538,1742069459673,-756.27,9.863e-05,2]
[356206539,1742069459682,-839.59,9.863e-05,2]
[356206540,1742069459691,-623.17,9.863e-05,2]
[356206541,1742069459700,-500.0,9.863e-05,2]
[356206542,1742069459710,-500.0,9.863e-05,2]
[356206543,1742069459719,-500.0,9.863e-05,2]
[356206544,1742069459727,-500.0,9.863e-05,2]
[356206545,1742069459737,-500.0,9.863e-05,2]
[356206546,1742069459747,-500.0,9.863e-05,2]
[356206547,1742069459756,-500.0,9.863e-05,2]
[356206548,1742069459765,-500.0,9.863e-05,2]
[356206549,1742069459774,-500.0,9.863e-05,2]
[356206550,1742069459783,-659.35,9.863e-05,2]
[356206551,1742069459793,-500.0,9.863e-05,2]
[356206552,1742069459802,-500.0,9.863e-05,2]
[356206553,1742069459811,-500.0,9.863e-05,2]
[356206554,1742069459819,-500.0,9.863e-05,2]
[356206555,1742069459828,-833.38,9.863e-05,2]
[356206556,1742069459838,-500.0,9.863e-05,2]
[356206557,1742069459847,-500.0,9.863e-05,2]
[356206558,1742069459856,-500.0,9.863e-05,2]
[356206559,1742069459865,-500.0,9.863e-05,2]
[356206560,1742069459874,-500.0,9.863e-05,2]
[356206561,1742069459884,-500.0,9.863e-05,2]
[356206562,1742069459893,-500.0,9.863e-05,2]
[356206563,1742069459903,-500.0,9.863e-05,2]
[356206564,1742069459912,-615.95498905,9.863e-05,2]
[356206565,1742069459921,-1000.98,9.863e-05,2]
[356206566,1742069459931,-1097.7,9.863e-05,2]
[356206567,1742069459940,-500.0,9.863e-05,2]
[356206568,1742069459950,-500.0,9.863e-05,2]
[356206569,1742069459960,-500.0,9.863e-05,2]
[356206570,1742069459969,-4649.58,9.863e-05,2]
[356206571,1742069459983,-500.0,9.863e-05,2]
[356206572,1742069459992,-1994.18,9.863e-05,2]
[356206573,1742069460001,-500.0,9.863e-05,2]
[356206574,1742069460011,-412.71,9.863e-05,2]
[356206575,1742069460020,-500.0,9.863e-05,2]
[356206576,1742069460029,-500.0,9.863e-05,2]
[356206577,1742069460039,-500.0,9.863e-05,2]
[356206578,1742069460049,-46612.74,9.863e-05,2]
[356206579,1742069460058,-500.0,9.863e-05,2]
[356206580,1742069460067,-500.0,9.863e-05,2]
[356206581,1742069460076,-500.0,9.863e-05,2]
[356206582,1742069460085,-2353.9,9.863e-05,2]
[356206583,1742069460094,-500.0,9.863e-05,2]
[356206584,1742069460103,-500.0,9.863e-05,2]
[356206585,1742069460112,-500.0,9.863e-05,2]
[356206586,1742069460121,-500.0,9.863e-05,2]
[356206587,1742069460131,-7964.85,9.863e-05,2]
[356206588,1742069460140,-500.0,9.863e-05,2]
[356206589,1742069460149,-2651.85,9.863e-05,2]
[356206590,1742069460158,-500.0,9.863e-05,2]
[356206591,1742069460168,-2898.71,9.863e-05,2]
[356206592,1742069460177,-500.0,9.863e-05,2]
[356206593,1742069460187,-500.0,9.863e-05,2]
[356206594,1742069460196,-500.0,9.863e-05,2]
[356206595,1742069460205,-500.0,9.863e-05,2]
[356206596,1742069460215,-500.0,9.863e-05,2]
[356206597,1742069460225,-500.0,9.863e-05,2]
[356206598,1742069460234,-1506.38,9.863e-05,2]
[356206599,1742069460244,-500.0,9.863e-05,2]
[356206600,1742069460253,-500.0,9.863e-05,2]
[356206601,1742069460262,-1036.49,9.863e-05,2]
[356206602,1742069460272,-500.0,9.863e-05,2]
[356206603,1742069460282,-500.0,9.863e-05,2]
[356206604,1742069460291,-500.0,9.863e-05,2]
[356206605,1742069460300,-500.0,9.863e-05,2]
[356206606,1742069460310,-500.0,9.863e-05,2]
[356206607,1742069460320,-769.78,9.863e-05,2]
[356206608,1742069460329,-500.0,9.863e-05,2]
[356206609,1742069460339,-1490.03,9.863e-05,2]
[356206610,1742069460349,-500.0,9.863e-05,2]
[356206611,1742069460359,-897.81,9.863e-05,2]
[356206612,1742069460369,-500.0,9.863e-05,2]
[356206613,1742069460378,-500.0,9.863e-05,2]
[356206614,1742069460388,-500.0,9.863e-05,2]
[356206615,1742069460398,-500.0,9.863e-05,2]
[356206616,1742069460408,-500.0,9.863e-05,2]
[356206617,1742069460419,-500.0,9.863e-05,2]
[356206618,1742069460428,-500.0,9.863e-05,2]
[356206619,1742069460438,-500.0,9.863e-05,2]
[356206620,1742069460450,-500.0,9.863e-05,2]
[356206621,1742069460460,-500.0,9.863e-05,2]
[356206622,1742069460470,-6818.38,9.863e-05,2]
[356206623,1742069460479,-500.0,9.863e-05,2]
[356206624,1742069460489,-941.95,9.863e-05,2]
[356206625,1742069460499,-500.0,9.863e-05,2]
[356206626,1742069460510,-500.0,9.863e-05,2]
[356206627,1742069460520,-500.0,9.863e-05,2]
[356206628,1742069460532,-617.79088706,9.863e-05,2]
[356206629,1742069460542,-500.0,9.863e-05,2]
[356206630,1742069460554,-500.0,9.863e-05,2]
[356206631,1742069460564,-1936.37,9.863e-05,2]
[356206632,1742069460575,-500.0,9.863e-05,2]
[356206633,1742069460585,-500.0,9.863e-05,2]
[356206634,1742069460595,-500.0,9.863e-05,2]
[356206635,1742069460604,-500.0,9.863e-05,2]
[356206636,1742069460615,-538.58,9.863e-05,2]
[356206637,1742069460628,-500.0,9.863e-05,2]
[356206638,1742069460638,-500.0,9.863e-05,2]
[356206639,1742069460647,-623.48,9.863e-05,2]
[356206640,1742069460657,-1141.52,9.863e-05,2]
[356206641,1742069460667,-500.0,9.863e-05,2]
[356206642,1742069460676,-500.0,9.863e-05,2]
[356206643,1742069460686,-804.44,9.863e-05,2]
[356206644,1742069460695,-776.5,9.863e-05,2]
[356206645,1742069460705,-2636.78,9.863e-05,2]
[356206646,1742069460715,-500.0,9.863e-05,2]
[356206647,1742069460724,-3412.37,9.863e-05,2]
[356206648,1742069460734,-500.0,9.863e-05,2]
[356206649,1742069460744,-500.0,9.863e-05,2]
[356206650,1742069460754,-589.09,9.863e-05,2]
[356206651,1742069460764,-500.0,9.863e-05,2]
[356206652,1742069460774,-739.26,9.863e-05,2]
[356206653,1742069460784,-500.0,9.863e-05,2]
[356206654,1742069460793,-500.0,9.863e-05,2]
[356206655,1742069460803,-1927.39,9.863e-05,2]
[356206656,1742069460812,-500.0,9.863e-05,2]
[356206657,1742069460822,-500.0,9.863e-05,2]
[356206658,1742069460832,-500.0,9.863e-05,2]
[356206659,1742069460842,-1279.39,9.863e-05,2]
[356206660,1742069460851,-1401.46,9.863e-05,2]
[356206661,1742069460861,-500.0,9.863e-05,2]
[356206662,1742069460871,-500.0,9.863e-05,2]
[356206663,1742069460883,-500.0,9.863e-05,2]
[356206664,1742069460894,-500.0,9.863e-05,2]
[356206665,1742069460904,-828.76,9.863e-05,2]
[356206666,1742069460914,-500.0,9.863e-05,2]
[356206667,1742069460924,-500.0,9.863e-05,2]
[356206668,1742069460934,-500.0,9.863e-05,2]
[356206669,1742069460944,-500.0,9.863e-05,2]
[356206670,1742069460954,-1150.01,9.863e-05,2]
[356206671,1742069460964,-1784.3,9.863e-05,2]
[356206672,1742069460974,-500.0,9.863e-05,2]
[356206673,1742069460984,-500.0,9.863e-05,2]
[356206674,1742069460995,-500.0,9.863e-05,2]
[356206675,1742069461006,-500.0,9.863e-05,2]
[356206676,1742069461016,-500.0,9.863e-05,2]
[356206677,1742069461027,-500.0,9.863e-05,2]
[356206678,1742069461037,-500.0,9.863e-05,2]
[356206679,1742069461048,-649.36,9.863e-05,2]
[356206680,1742069461058,-500.0,9.863e-05,2]
[356206681,1742069461069,-500.0,9.863e-05,2]
[356206682,1742069461079,-500.0,9.863e-05,2]
[356206683,1742069461090,-3090.87,9.863e-05,2]
[356206684,1742069461100,-500.0,9.863e-05,2]
[356206685,1742069461110,-525.48,9.863e-05,2]
[356206686,1742069461120,-2090.27,9.863e-05,2]
[356206687,1742069461130,-562.82,9.863e-05,2]
[356206688,1742069461139,-500.0,9.863e-05,2]
[356206689,1742069461150,-546.70075741,9.863e-05,2]
[356206690,1742069461161,-855.74,9.863e-05,2]
[356206691,1742069461171,-500.0,9.863e-05,2]
[356206692,1742069461181,-500.0,9.863e-05,2]
[356206693,1742069461191,-587.0,9.943e-05,2]
[356206694,1742069461201,-2200.0,0.0001,2]
[356206695,1742069461211,-12005.55043954,0.0001,2]
[356206696,1742069461220,-12005.55043933,0.0001,2]
[356206697,1742069461231,-12005.55043933,0.0001,2]
[356206698,1742069461241,-500.0,0.00010136,2]
[356206699,1742069461251,-500.0,0.00010136,2]
[356206700,1742069461260,-500.0,0.00010136,2]
[356206701,1742069461270,-564.32,0.00010136,2]
[356206702,1742069461279,-504.2,0.00010136,2]
[356206703,1742069461288,-500.0,0.00010136,2]
[356206704,1742069461298,-500.0,0.00010136,2]
[356206705,1742069461309,-500.0,0.00010136,2]
[356206706,1742069461319,-500.0,0.00010136,2]
[356206707,1742069461329,-537.78,0.00010136,2]
[356206708,1742069461339,-535.83,0.00010136,2]
[356206709,1742069461349,-500.0,0.00010136,2]
[356206710,1742069461359,-920.03,0.00010136,2]
[356206711,1742069461369,-612.47,0.00010136,2]
[356206712,1742069461379,-500.0,0.00010136,2]
[356206713,1742069461389,-500.0,0.00010136,2]
[356206714,1742069461399,-756.27,0.00010136,2]
[356206715,1742069461410,-839.59,0.00010136,2]
[356206716,1742069461420,-623.17,0.00010136,2]
[356206717,1742069461430,-500.0,0.00010136,2]
[356206718,1742069461441,-238.25,0.00010136,2]
[356206719,1742069461451,-500.0,0.00010136,2]
[356206720,1742069461462,-500.0,0.00010136,2]
[356206721,1742069461472,-500.0,0.00010136,2]
[356206722,1742069461482,-500.0,0.00010136,2]
[356206723,1742069461491,-500.0,0.00010136,2]
[356206724,1742069461502,-500.0,0.00010136,2]
[356206725,1742069461513,-659.35,0.00010136,2]
[356206726,1742069461523,-500.0,0.00010136,2]
[356206727,1742069461533,-500.0,0.00010136,2]
[356206728,1742069461543,-500.0,0.00010136,2]
[356206729,1742069461554,-833.38,0.00010136,2]
[356206730,1742069461564,-500.0,0.00010136,2]
[356206731,1742069461574,-513.84,0.00010136,2]
[356206732,1742069461585,-500.0,0.00010136,2]
[356206733,1742069461594,-182.59,0.00010136,2]
[356206734,1742069461604,-500.0,0.00010136,2]
[356206735,1742069461613,-500.0,0.00010136,2]
[356206736,1742069461623,-1000.98,0.00010136,2]
[356206737,1742069461632,-1097.7,0.00010136,2]
[356206738,1742069461642,-500.0,0.00010136,2]
[356206739,1742069461652,-500.0,0.00010136,2]
[356206740,1742069461662,-4649.58,0.00010136,2]
[356206741,1742069461672,-500.0,0.00010136,2]
[356206742,1742069461682,-1994.18,0.00010136,2]
[356206743,1742069461692,-500.0,0.00010136,2]
[356206744,1742069461702,-500.0,0.00010136,2]
[356206745,1742069461712,-500.0,0.00010136,2]
[356206746,1742069461722,-46612.74,0.00010136,2]
[356206747,1742069461732,-500.0,0.00010136,2]
[356206748,1742069461742,-500.0,0.00010136,2]
[356206749,1742069461751,-500.0,0.00010136,2]
[356206750,1742069461761,-2353.9,0.00010136,2]
[356206751,1742069461771,-500.0,0.00010136,2]
[356206752,1742069461781,-500.0,0.00010136,2]
[356206753,1742069461791,-500.0,0.00010136,2]
[356206754,1742069461809,-7964.85,0.00010136,2]
[356206755,1742069461819,-500.0,0.00010136,2]
[356206756,1742069461830,-2651.85,0.00010136,2]
[356206757,1742069461840,-500.0,0.00010136,2]
[356206758,1742069461850,-2898.71,0.00010136,2]
[356206759,1742069461861,-500.0,0.00010136,2]
[356206760,1742069461871,-500.0,0.00010136,2]
[356206761,1742069461881,-500.0,0.00010136,2]
[356206762,1742069461891,-500.0,0.00010136,2]
[356206763,1742069461901,-500.0,0.00010136,2]
[356206764,1742069461911,-500.0,0.00010136,2]
[356206765,1742069461921,-1506.38,0.00010136,2]
[356206766,1742069461931,-500.0,0.00010136,2]
[356206767,1742069461941,-500.0,0.00010136,2]
[356206768,1742069461951,-1036.49,0.00010136,2]
[356206769,1742069461961,-500.0,0.00010136,2]
[356206770,1742069461972,-500.0,0.00010136,2]
[356206771,1742069461982,-500.0,0.00010136,2]
[356206772,1742069461993,-500.0,0.00010136,2]
[356206773,1742069462003,-500.0,0.00010136,2]
[356206774,1742069462014,-769.78,0.00010136,2]
[356206775,1742069462024,-163.06,0.00010136,2]
[356206776,1742069462034,-1490.03,0.00010136,2]
[356206777,1742069462045,-500.0,0.00010136,2]
[356206778,1742069462055,-897.81,0.00010136,2]
[356206779,1742069462065,-500.0,0.00010136,2]
[356206780,1742069462075,-500.0,0.00010136,2]
[356206781,1742069462085,-500.0,0.00010136,2]
[356206782,1742069462095,-500.0,0.00010136,2]
[356206783,1742069462106,-500.0,0.00010136,2]
[356206784,1742069462115,-598.19364098,0.00010136,2]
[356206785,1742069462125,-506.84,0.00010136,2]
[356206786,1742069462135,-500.0,0.00010136,2]
[356206787,1742069462145,-500.0,0.00010136,2]
[356206788,1742069462155,-500.0,0.00010136,2]
[356206789,1742069462166,-6818.38,0.00010136,2]
[356206790,1742069462176,-500.0,0.00010136,2]
[356206791,1742069462186,-941.95,0.00010136,2]
[356206792,1742069462196,-500.0,0.00010136,2]
[356206793,1742069462206,-500.0,0.00010136,2]
[356206794,1742069462217,-268.59919537,0.00010136,2]
[356206795,1742069462228,-500.0,0.00010136,2]
[356206796,1742069462237,-500.0,0.00010136,2]
[356206797,1742069462248,-1936.37,0.00010136,2]
[356206798,1742069462258,-500.0,0.00010136,2]
[356206799,1742069462269,-500.0,0.00010136,2]
[356206800,1742069462280,-500.0,0.00010136,2]
[356206801,1742069462290,-553.96,0.00010136,2]
[356206802,1742069462300,-538.58,0.00010136,2]
[356206803,1742069462311,-500.0,0.00010136,2]
[356206804,1742069462327,-500.0,0.00010136,2]
[356206805,1742069462338,-623.48,0.00010136,2]
[356206806,1742069462348,-1141.52,0.00010136,2]
[356206807,1742069462358,-197.32,0.00010136,2]
[356206808,1742069462368,-500.0,0.00010136,2]
[356206809,1742069462378,-804.44,0.00010136,2]
[356206810,1742069462388,-776.5,0.00010136,2]
[356206811,1742069462398,-2636.78,0.00010136,2]
[356206812,1742069462408,-500.0,0.00010136,2]
[356206813,1742069462418,-3412.37,0.00010136,2]
[356206814,1742069462427,-500.0,0.00010136,2]
[356206815,1742069462437,-500.0,0.00010136,2]
[356206816,1742069462448,-589.09,0.00010136,2]
[356206817,1742069462458,-500.0,0.00010136,2]
[356206818,1742069462467,-739.26,0.00010136,2]
[356206819,1742069462477,-500.0,0.00010136,2]
[356206820,1742069462486,-1927.39,0.00010136,2]
[356206821,1742069462496,-500.0,0.00010136,2]
[356206822,1742069462506,-1279.39,0.00010136,2]
[356206823,1742069462519,-500.0,0.00010136,2]
[356206824,1742069462530,-1401.46,0.00010136,2]
[356206825,1742069462539,-500.0,0.00010136,2]
[356206826,1742069462551,-500.0,0.00010136,2]
[356206827,1742069462560,-500.0,0.00010136,2]
[356206828,1742069462570,-500.0,0.00010136,2]
[356206829,1742069462580,-828.76,0.00010136,2]
[356206830,1742069462590,-500.0,0.00010136,2]
[356206831,1742069462601,-228.1,0.00010136,2]
[356206832,1742069462611,-500.0,0.00010136,2]
[356206833,1742069462621,-500.0,0.00010136,2]
[356206834,1742069462631,-1150.01,0.00010136,2]
[356206835,1742069462641,-1784.3,0.00010136,2]
[356206836,1742069462651,-500.0,0.00010136,2]
[356206837,1742069462660,-500.0,0.00010136,2]
[356206838,1742069462670,-500.0,0.00010136,2]
[356206839,1742069462680,-500.0,0.00010136,2]
[356206840,1742069462690,-500.0,0.00010136,2]
[356206841,1742069462701,-500.0,0.00010136,2]
[356206842,1742069462711,-500.0,0.00010136,2]
[356206843,1742069462722,-649.36,0.00010136,2]
[356206844,1742069462732,-500.0,0.00010136,2]
[356206845,1742069462886,-500.0,0.00010136,2]
[356206846,1742069462895,-3090.87,0.00010136,2]
[356206847,1742069462903,-500.0,0.00010136,2]
[356206848,1742069462913,-525.48,0.00010136,2]
[356206849,1742069462922,-2090.27,0.00010136,2]
[356206850,1742069462932,-855.74,0.00010136,2]
[356206851,1742069462942,-500.0,0.00010136,2]
[356206852,1742069462951,-234.414,0.00010391,2]
[356206853,1742069462960,-157.75,0.0001041,2]
[356206854,1742069462970,-494.17,0.0001041,2]
[356206855,1742069462979,-356.54,0.0001041,2]
[356206856,1742069462988,-504.2,0.0001041,2]
[356206857,1742069462998,-500.0,0.0001041,2]
[356206858,1742069463008,-500.0,0.0001041,2]
[356206859,1742069463019,-500.0,0.0001041,2]
[356206860,1742069463030,-500.0,0.0001041,2]
[356206861,1742069463040,-500.0,0.0001041,2]
[356206862,1742069463050,-920.03,0.0001041,2]
[356206863,1742069463060,-612.47,0.0001041,2]
[356206864,1742069463070,-500.0,0.0001041,2]
[356206865,1742069463080,-500.0,0.0001041,2]
[356206866,1742069463090,-756.27,0.0001041,2]
[356206867,1742069463099,-839.59,0.0001041,2]
[356206868,1742069463109,-623.17,0.0001041,2]
[356206869,1742069463118,-500.0,0.0001041,2]
[356206870,1742069463127,-500.0,0.0001041,2]
[356206871,1742069463137,-500.0,0.0001041,2]
[356206872,1742069463147,-500.0,0.0001041,2]
[356206873,1742069463156,-500.0,0.0001041,2]
[356206874,1742069463167,-281.32,0.0001041,2]
[356206875,1742069463176,-659.35,0.0001041,2]
[356206876,1742069463186,-388.75,0.0001041,2]
[356206877,1742069463196,-500.0,0.0001041,2]
[356206878,1742069463205,-833.38,0.0001041,2]
[356206879,1742069463215,-500.0,0.0001041,2]
[356206880,1742069463225,-500.0,0.0001041,2]
[356206881,1742069463236,-500.0,0.0001041,2]
[356206882,1742069463247,-310.55,0.0001041,2]
[356206883,1742069463257,-1000.98,0.0001041,2]
[356206884,1742069463266,-1097.7,0.0001041,2]
[356206885,1742069463276,-500.0,0.0001041,2]
[356206886,1742069463286,-500.0,0.0001041,2]
[356206887,1742069463296,-4649.58,0.0001041,2]
[356206888,1742069463306,-500.0,0.0001041,2]
[356206889,1742069463316,-1994.18,0.0001041,2]
[356206890,1742069463325,-500.0,0.0001041,2]
[356206891,1742069463335,-500.0,0.0001041,2]
[356206892,1742069463345,-500.0,0.0001041,2]
[356206893,1742069463355,-46612.74,0.0001041,2]
[356206894,1742069463364,-500.0,0.0001041,2]
[356206895,1742069463374,-500.0,0.0001041,2]
[356206896,1742069463384,-2353.9,0.0001041,2]
[356206897,1742069463394,-500.0,0.0001041,2]
[356206898,1742069463404,-500.0,0.0001041,2]
[356206899,1742069463413,-500.0,0.0001041,2]
[356206900,1742069463423,-7964.85,0.0001041,2]
[356206901,1742069463432,-2651.85,0.0001041,2]
[356206902,1742069463442,-2898.71,0.0001041,2]
[356206903,1742069463452,-500.0,0.0001041,2]
[356206904,1742069463462,-500.0,0.0001041,2]
[356206905,1742069463472,-588.38,0.0001041,2]
[356206906,1742069463482,-500.0,0.0001041,2]
[356206907,1742069463492,-500.0,0.0001041,2]
[356206908,1742069463503,-1506.38,0.0001041,2]
[356206909,1742069463515,-500.0,0.0001041,2]
[356206910,1742069463526,-1036.49,0.0001041,2]
[356206911,1742069463536,-500.0,0.0001041,2]
[356206912,1742069463547,-500.0,0.0001041,2]
[356206913,1742069463557,-500.0,0.0001041,2]
[356206914,1742069463567,-500.0,0.0001041,2]
[356206915,1742069463579,-769.78,0.0001041,2]
[356206916,1742069463589,-1490.03,0.0001041,2]
[356206917,1742069463599,-500.0,0.0001041,2]
[356206918,1742069463609,-897.81,0.0001041,2]
[356206919,1742069463619,-500.0,0.0001041,2]
[356206920,1742069463628,-500.0,0.0001041,2]
[356206921,1742069463638,-500.0,0.0001041,2]
[356206922,1742069463648,-500.0,0.0001041,2]
[356206923,1742069463659,-500.0,0.0001041,2]
[356206924,1742069463669,-500.0,0.0001041,2]
[356206925,1742069463680,-500.0,0.0001041,2]
[356206926,1742069463690,-6818.38,0.0001041,2]
[356206927,1742069463700,-941.95,0.0001041,2]
[356206928,1742069463711,-500.0,0.0001041,2]
[356206929,1742069463722,-500.0,0.0001041,2]
[356206930,1742069463732,-500.0,0.0001041,2]
[356206931,1742069463742,-500.0,0.0001041,2]
[356206932,1742069463754,-1936.37,0.0001041,2]
[356206933,1742069463764,-500.0,0.0001041,2]
[356206934,1742069463774,-500.0,0.0001041,2]
[356206935,1742069463784,-565.82254267,0.0001041,2]
[356206936,1742069463794,-538.58,0.0001041,2]
[356206937,1742069463805,-500.0,0.0001041,2]
[356206938,1742069463814,-540.56,0.0001041,2]
[356206939,1742069463824,-623.48,0.0001041,2]
[356206940,1742069463833,-1141.52,0.0001041,2]
[356206941,1742069463843,-500.0,0.0001041,2]
[356206942,1742069463852,-804.44,0.0001041,2]
[356206943,1742069463862,-776.5,0.0001041,2]
[356206944,1742069463871,-2636.78,0.0001041,2]
[356206945,1742069463880,-500.0,0.0001041,2]
[356206946,1742069463890,-3412.37,0.0001041,2]
[356206947,1742069463900,-500.0,0.0001041,2]
[356206948,1742069463910,-500.0,0.0001041,2]
[356206949,1742069463920,-589.09,0.0001041,2]
[356206950,1742069463930,-500.0,0.0001041,2]
[356206951,1742069463939,-739.26,0.0001041,2]
[356206952,1742069463949,-1927.39,0.0001041,2]
[356206953,1742069463959,-500.0,0.0001041,2]
[356206954,1742069463970,-1279.39,0.0001041,2]
[356206955,1742069463980,-500.0,0.0001041,2]
[356206956,1742069463990,-1401.46,0.0001041,2]
[356206957,1742069464001,-500.0,0.0001041,2]
[356206958,1742069464011,-500.0,0.0001041,2]
[356206959,1742069464021,-500.0,0.0001041,2]
[356206960,1742069464031,-500.0,0.0001041,2]
[356206961,1742069464040,-828.76,0.0001041,2]
[356206962,1742069464050,-500.0,0.0001041,2]
[356206963,1742069464059,-584.97450431,0.0001041,2]
[356206964,1742069464069,-1150.01,0.0001041,2]
[356206965,1742069464079,-1784.3,0.0001041,2]
[356206966,1742069464089,-500.0,0.0001041,2]
[356206967,1742069464099,-500.0,0.0001041,2]
[356206968,1742069464108,-181.72073286,0.0001041,2]
[356206969,1742069464117,-500.0,0.0001041,2]
[356206970,1742069464127,-500.0,0.0001041,2]
[356206971,1742069464137,-500.0,0.0001041,2]
[356206972,1742069464146,-649.36,0.0001041,2]
[356206973,1742069464156,-500.0,0.0001041,2]
[356206974,1742069464166,-500.0,0.0001041,2]
[356206975,1742069464176,-3090.87,0.0001041,2]
[356206976,1742069464186,-525.48,0.0001041,2]
[356206977,1742069464195,-2090.27,0.0001041,2]
[356206978,1742069464205,-855.74,0.0001041,2]
[356206979,1742069464215,-500.0,0.0001041,2]
[356206980,1742069464224,-600.0,0.00010411,2]
[356206981,1742069464233,-12005.55043933,0.00010431,2]
[356206982,1742069464243,-1500.0,0.00010439,2]
[356206983,1742069464253,-622.2,0.00010466,2]
[356206984,1742069464263,-645.2214,0.00010521,2]
[356206985,1742069464273,-669.0945918,0.00010576,2]
[356206986,1742069464283,-3000.0,0.00010584,2]
[356206987,1742069464292,-3000.0,0.00010584,2]
[356206988,1742069464302,-693.8510917,0.00010631,2]
[356206989,1742069464311,-504.2,0.00010684,2]
[356206990,1742069464321,-500.0,0.00010684,2]
[356206991,1742069464331,-500.0,0.00010684,2]
[356206992,1742069464340,-500.0,0.00010684,2]
[356206993,1742069464350,-500.0,0.00010684,2]
[356206994,1742069464359,-500.0,0.00010684,2]
[356206995,1742069464368,-920.03,0.00010684,2]
[356206996,1742069464377,-612.47,0.00010684,2]
[356206997,1742069464386,-500.0,0.00010684,2]
[356206998,1742069464396,-648.64,0.00010684,2]
[356206999,1742069464405,-756.27,0.00010684,2]
[356207000,1742069464414,-839.59,0.00010684,2]
[356207001,1742069464423,-623.17,0.00010684,2]
[356207002,1742069464433,-500.0,0.00010684,2]
[356207003,1742069464442,-500.0,0.00010684,2]
[356207004,1742069464451,-500.0,0.00010684,2]
[356207005,1742069464460,-500.0,0.00010684,2]
[356207006,1742069464469,-500.0,0.00010684,2]
[356207007,1742069464478,-659.35,0.00010684,2]
[356207008,1742069464488,-500.0,0.00010684,2]